[Event "Mukachevo IM May 2019"]
[Site "Mukachevo"]
[Date "2019.05.12"]
[Round "6.4"]
[White "Martynyuk, Elizaveta"]
[Black "Shankovskyi, Andrii"]
[Result "1-0"]
[ECO "C50"]
[WhiteElo "2141"]
[BlackElo "2374"]
[Annotator "NA"]
[PlyCount "69"]
[EventDate "2019.05.09"]
[EventType "tourn"]
[EventCountry "UKR"]
[SourceTitle "playchess.com"]
[Source "ChessBase"]
[SourceQuality "1"]
[TimeControl "40/5400+30:900+30"]

1. e4 {[%emt 0:04:06]} e5 {[%emt 0:00:00]} 2. Nf3 {[%emt 0:00:06]} Nc6 {[%emt 0:00:00]} 3. Bc4 {[%emt 0:00:05]} Nf6 {[%emt 0:00:00]} 4. d3 {[%emt 0:00:06]} Bc5 {[%emt 0:00:00]} 5. c3 {[%emt 0:00:04]} d6 {[%emt 0:00:01]} 6. Bb3 {[%emt 0:00:06]} a6 {[%emt 0:00:06]} 7. Nbd2 {[%emt 0:00:13]} h6 {[%emt 0:00:09]} 8. h3 {[%emt 0:00:12]} O-O {[%emt 0:01:23]} 9. O-O {[%emt 0:00:06]} Nh5 {[%emt 0:00:19]} 10. Nxe5 {[%emt 0:20:24]} dxe5 {[%emt 0:02:14]} 11. Qxh5 {[%emt 0:00:14]} Qxd3 {[%emt 0:00:20]} 12. Bd5 {[%emt 0:05:23]} Ne7 {[%emt 0:15:26]} 13. Nb3 {[%emt 0:03:49]} Ba7 {[%emt 0:09:27]} 14. Qxe5 {[%emt 0:12:52]} c6 {[%emt 0:01:16]} 15. Bxh6 {[%emt 0:05:06]} gxh6 {[%emt 0:03:19]} 16. Rad1 {[%emt 0:06:16]} Qb5 {[%emt 0:01:56]} 17. a4 {[%emt 0:02:42]} Qb6 {[%emt 0:01:18]} 18. Bc4 {[%emt 0:01:29]} Ng6 {[%emt 0:05:21]} 19. Qg3 {[%emt 0:02:12]} Kg7 {[%emt 0:09:00]} 20. a5 {[%emt 0:00:13]} Bb8 {[%emt 0:04:48]} 21. Qxg6+ {[%emt 0:00:11]} Kxg6 {[%emt 0:00:07]} 22. axb6 {[%emt 0:00:03]} a5 {[%emt 0:00:01]} 23. f4 {[%emt 0:00:26]} a4 {[%emt 0:00:01]} 24. Nc5 {[%emt 0:02:30]} Ra5 {[%emt 0:00:08]} 25. Nd7 {[%emt 0:00:05]} Bxd7 {[%emt 0:00:11]} 26. Rxd7 {[%emt 0:00:04]} a3 {[%emt 0:00:03]} 27. bxa3 {[%emt 0:00:19]} Rxa3 {[%emt 0:00:11]} 28. Rf3 {[%emt 0:00:11]} Ra1+ {[%emt 0:00:44]} 29. Kh2 {[%emt 0:00:10]} Rb1 {[%emt 0:01:34]} 30. Rxb7 {[%emt 0:00:08]} f5 {[%emt 0:00:48]} 31. e5 {[%emt 0:00:34]} h5 {[%emt 0:00:30]} 32. Rg3+ {[%emt 0:00:11]} Kh6 {[%emt 0:00:01]} 33. Rgg7 {[%emt 0:00:08]} Rh8 {[%emt 0:00:12]} 34. Rge7 {[%emt 0:00:35]} h4 {[%emt 0:00:24]} 35. Re6+ {[%emt 0:00:09]} 1-0

[Event "Mukachevo IM May 2019"]
[Site "Mukachevo"]
[Date "2019.05.12"]
[Round "6.5"]
[White "Itkis, Boris"]
[Black "Shkuran, Danylo"]
[Result "1/2-1/2"]
[ECO "D10"]
[WhiteElo "2327"]
[BlackElo "2357"]
[Annotator "NA"]
[PlyCount "60"]
[EventDate "2019.05.09"]
[EventType "tourn"]
[EventCountry "UKR"]
[SourceTitle "playchess.com"]
[Source "ChessBase"]
[SourceQuality "1"]
[TimeControl "40/5400+30:900+30"]

1. d4 {[%emt 0:00:00]} d5 {[%emt 0:00:31]} 2. c4 {[%emt 0:02:10]} c6 {[%emt 0:00:07]} 3. cxd5 {[%emt 0:00:07]} cxd5 {[%emt 0:00:06]} 4. Nc3 {[%emt 0:00:05]} Nf6 {[%emt 0:00:08]} 5. Nf3 {[%emt 0:00:05]} Nc6 {[%emt 0:00:10]} 6. Bf4 {[%emt 0:00:08]} e6 {[%emt 0:00:08]} 7. e3 {[%emt 0:00:05]} Bd6 {[%emt 0:00:06]} 8. Bxd6 {[%emt 0:00:06]} Qxd6 {[%emt 0:00:05]} 9. Bd3 {[%emt 0:00:08]} O-O {[%emt 0:00:11]} 10. O-O {[%emt 0:00:09]} Bd7 {[%emt 0:00:57]} 11. Rc1 {[%emt 0:00:06]} Rfc8 {[%emt 0:00:15]} 12. a3 $11 {[%emt 0:00:43]} e5 {[%emt 0:02:39]} 13. dxe5 {[%emt 0:00:09]} Nxe5 {[%emt 0:00:05]} 14. Nxe5 {[%emt 0:00:43]} Qxe5 {[%emt 0:00:09]} 15. Qf3 {[%emt 0:00:36]} Bg4 {[%emt 0:02:31]} 16. Qg3 {[%emt 0:00:08]} Qxg3 {[%emt 0:00:04]} 17. hxg3 {[%emt 0:00:06]} a6 {[%emt 0:01:23]} 18. Na4 {[%emt 0:01:45]} Rxc1 {[%emt 0:01:30]} 19. Rxc1 {[%emt 0:00:22]} Rc8 {[%emt 0:00:03]} 20. Rxc8+ {[%emt 0:00:07]} Bxc8 {[%emt 0:00:06]} 21. Nc3 {[%emt 0:00:07]} Kf8 {[%emt 0:00:19]} 22. f3 {[%emt 0:00:18]} Ke7 {[%emt 0:00:18]} 23. Kf2 {[%emt 0:00:21]} Kd6 {[%emt 0:00:52]} 24. g4 {[%emt 0:00:08]} h6 {[%emt 0:00:06]} 25. Ne2 {[%emt 0:01:09]} Be6 {[%emt 0:00:26]} 26. Nd4 {[%emt 0:00:10]} Nd7 {[%emt 0:00:10]} 27. Ke2 {[%emt 0:00:16]} Ne5 {[%emt 0:00:46]} 28. b3 {[%emt 0:00:24]} g6 {[%emt 0:01:04]} 29. Kd2 {[%emt 0:00:25]} Bd7 {[%emt 0:00:13]} 30. Be2 {[%emt 0:00:21]} Kc5 {[%emt 0:00:14]} 1/2-1/2

[Event "Mukachevo IM May 2019"]
[Site "Mukachevo"]
[Date "2019.05.13"]
[Round "8.1"]
[White "Tran, David"]
[Black "Tiba, Vladyslav"]
[Result "0-1"]
[ECO "B42"]
[WhiteElo "2070"]
[BlackElo "2370"]
[Annotator "RC"]
[PlyCount "84"]
[EventDate "2019.05.09"]
[EventType "tourn"]
[EventCountry "UKR"]
[SourceTitle "playchess.com"]
[Source "ChessBase"]
[SourceQuality "1"]
[TimeControl "40/5400+30:900+30"]

1. e4 {[%emt 0:03:18]} c5 {[%emt 0:00:04]} 2. Nf3 {[%emt 0:00:15]} e6 {[%emt 0:00:06]} 3. d4 {[%emt 0:00:16]} cxd4 {[%emt 0:00:06]} 4. Nxd4 {[%emt 0:00:07]} a6 {[%emt 0:00:06]} 5. Bd3 {[%emt 0:00:25]} Bc5 {[%emt 0:00:24]} 6. Nb3 {[%emt 0:00:12]} Be7 {[%emt 0:00:07]} 7. Nc3 {[%emt 0:00:05]} d6 {[%emt 0:01:22]} 8. O-O {[%emt 0:00:32]} Nf6 {[%emt 0:02:25]} 9. Be3 {[%emt 0:02:20]} b5 {[%emt 0:02:35]} 10. a3 {[%emt 0:00:08]} Bb7 {[%emt 0:00:41]} 11. f4 {[%emt 0:01:57]} Nbd7 {[%emt 0:01:22]} 12. Qe2 {[%emt 0:02:08]} Qc7 {[%emt 0:02:53]} 13. Kh1 {[%emt 0:00:21]} O-O {[%emt 0:02:37]} 14. Rae1 {[%emt 0:02:13]} Nc5 {[%emt 0:11:06]} 15. Nxc5 {[%emt 0:00:26]} dxc5 {[%emt 0:00:05]} 16. e5 {[%emt 0:00:04]} c4 {[%emt 0:01:40]} 17. Bxc4 {[%emt 0:01:14]} bxc4 {[%emt 0:00:31]} 18. exf6 {[%emt 0:00:05]} Bxf6 {[%emt 0:00:06]} 19. Na4 {[%emt 0:03:06]} Rab8 {[%emt 0:12:43]} 20. c3 {[%emt 0:01:29]} Bd5 {[%emt 0:06:43]} 21. Nc5 {[%emt 0:10:56]} Qc6 {[%emt 0:01:48]} 22. Bg1 {[%emt 0:02:07]} Be7 {[%emt 0:12:02]} 23. Ne4 {[%emt 0:00:29]} Qb7 {[%emt 0:00:34]} 24. Bd4 {[%emt 0:07:16]} Qxb2 {[%emt 0:03:48]} 25. Qg4 {[%emt 0:01:57]} f6 {[%emt 0:01:21]} 26. Re3 {[%emt 0:03:22]} Qc2 {[%emt 0:03:51]} 27. h4 {[%emt 0:02:11]} Kh8 {[%emt 0:06:03]} 28. Nc5 {[%emt 0:01:19]} Bxc5 {[%emt 0:03:21]} 29. Bxc5 {[%emt 0:00:10]} Rf7 {[%emt 0:00:19]} 30. Rg3 {[%emt 0:00:49]} Rb2 {[%emt 0:04:00]} 31. f5 {[%emt 0:09:46]} Rb1 {[%emt 0:06:58]} 32. fxe6 {[%emt 0:02:35]} Rxf1+ {[%emt 0:01:31]} 33. Kh2 {[%emt 0:00:06]} Qb1 {[%emt 0:02:28]} 34. Re3 {[%emt 0:03:48]} Rh1+ {[%emt 0:00:49]} 35. Kg3 {[%emt 0:00:03]} Qb8+ {[%emt 0:00:47]} 36. Kf2 {[%emt 0:01:19]} Rb7 {[%emt 0:01:02]} 37. Bb4 {[%emt 0:05:34]} Qe8 {[%emt 0:00:13]} 38. e7 {[%emt 0:00:16]} a5 {[%emt 0:03:10]} 39. Rg3 {[%emt 0:00:27]} g6 {[%emt 0:01:01]} 40. Qd4 {[%emt 0:00:00]} axb4 {[%emt 0:00:00]} 41. Qxf6+ {[%emt 0:01:55]} Kg8 {[%emt 0:00:59]} 42. Rf3 {[%emt 0:00:07]} Rxe7 {[%emt 0:00:33]} 0-1

[Event "Mukachevo IM May 2019"]
[Site "Mukachevo"]
[Date "2019.05.13"]
[Round "8.5"]
[White "Shkuran, Danylo"]
[Black "Shankovskyi, Andrii"]
[Result "0-1"]
[ECO "B34"]
[WhiteElo "2357"]
[BlackElo "2374"]
[Annotator "ChessBase"]
[PlyCount "86"]
[EventDate "2019.05.09"]
[EventType "tourn"]
[EventCountry "UKR"]
[SourceTitle "playchess.com"]
[Source "ChessBase"]
[SourceQuality "1"]
[TimeControl "40/5400+30:900+30"]

1. e4 {[%emt 0:01:26]} c5 {[%emt 0:00:41]} 2. Nf3 {[%emt 0:03:06]} Nf6 {[%emt 0:00:11]} 3. Nc3 {[%emt 0:00:29]} Nc6 {[%emt 0:00:20]} 4. d4 {[%emt 0:00:21]} cxd4 {[%emt 0:00:08]} 5. Nxd4 {[%emt 0:00:04]} e5 {[%emt 0:00:10]} 6. Ndb5 {[%emt 0:00:32]} d6 {[%emt 0:00:17]} 7. Nd5 {[%emt 0:00:06]} Nxd5 {[%emt 0:02:18]} 8. exd5 {[%emt 0:04:27]} Ne7 {[%emt 0:00:13]} 9. a4 {[%emt 0:00:32]} Ng6 {[%emt 0:03:49]} 10. Bd3 {[%emt 0:03:15]} Be7 {[%emt 0:02:15]} 11. O-O {[%emt 0:00:08]} O-O {[%emt 0:00:20]} 12. Be3 {[%emt 0:02:05]} a6 {[%emt 0:01:42]} 13. Na3 {[%emt 0:00:09]} b6 {[%emt 0:00:46]} 14. Bxg6 {[%emt 0:01:43]} fxg6 {[%emt 0:02:00]} 15. f3 {[%emt 0:05:57]} Bd7 {[%emt 0:05:09]} 16. c4 {[%emt 0:03:20]} Bg5 {[%emt 0:00:17]} 17. Bf2 {[%emt 0:01:00]} Qc7 {[%emt 0:05:16]} 18. b3 {[%emt 0:09:52]} Rab8 {[%emt 0:07:32]} 19. Qe2 {[%emt 0:03:51]} Qd8 {[%emt 0:04:02]} 20. Nc2 {[%emt 0:03:50]} Bh4 {[%emt 0:06:28]} 21. Rae1 {[%emt 0:02:46]} Bxf2+ {[%emt 0:01:10]} 22. Qxf2 {[%emt 0:01:01]} b5 {[%emt 0:00:31]} 23. axb5 {[%emt 0:00:53]} axb5 {[%emt 0:00:06]} 24. Ne3 {[%emt 0:00:05]} bxc4 {[%emt 0:01:01]} 25. bxc4 {[%emt 0:04:26]} Qb6 {[%emt 0:00:24]} 26. Qd2 {[%emt 0:01:35]} Rf4 {[%emt 0:00:31]} 27. Kh1 {[%emt 0:00:25]} Rd4 {[%emt 0:00:29]} 28. Qe2 {[%emt 0:01:40]} Qb3 {[%emt 0:11:05]} 29. Ra1 {[%emt 0:03:14]} Bf5 {[%emt 0:00:24]} 30. Rfe1 {[%emt 0:00:47]} Bd3 {[%emt 0:01:53]} 31. Qf2 {[%emt 0:01:06]} Bxc4 {[%emt 0:00:22]} 32. Nxc4 {[%emt 0:00:20]} Qxc4 {[%emt 0:00:13]} 33. Rac1 {[%emt 0:00:17]} Qxd5 {[%emt 0:00:14]} 34. Rc2 {[%emt 0:00:06]} h6 {[%emt 0:01:17]} 35. h3 {[%emt 0:00:18]} Rd1 {[%emt 0:00:15]} 36. Rce2 {[%emt 0:00:26]} Rbb1 {[%emt 0:00:14]} 37. Kh2 {[%emt 0:00:22]} Rxe1 {[%emt 0:00:28]} 38. Rxe1 {[%emt 0:00:13]} Rxe1 {[%emt 0:00:04]} 39. Qxe1 {[%emt 0:00:03]} Qd4 {[%emt 0:00:07]} 40. Qe2 {[%emt 0:00:00]} d5 {[%emt 0:00:00]} 41. Qa2 {[%emt 0:00:30]} Kh7 {[%emt 0:00:42]} 42. Qb3 {[%emt 0:00:22]} Qd2 {[%emt 0:00:30]} 43. Qb8 {[%emt 0:00:21]} Qe3 {[%emt 0:00:10]} 0-1